[Event "EYTCC U18 Girls 2019"]
[Site "Pardubice"]
[Date "2019.07.16"]
[Round "6.33"]
[White "Kopcova, Ludmila"]
[Black "Urh, Zala"]
[Result "0-1"]
[ECO "E29"]
[WhiteElo "1980"]
[BlackElo "2072"]
[Annotator "NA"]
[PlyCount "72"]
[EventDate "2019.07.11"]
[EventType "swiss"]
[EventCountry "CZE"]
[SourceTitle "playchess.com"]
[Source "ChessBase"]
[SourceQuality "1"]
[WhiteTeam "Czech Republic"]
[BlackTeam "Slovenia"]
[WhiteTeamCountry "CZE"]
[BlackTeamCountry "SLO"]
[TimeControl "40/5400+30:1800+30"]

1. d4 {[%emt 0:00:00]} Nf6 {[%emt 0:00:00]} 2. c4 {[%emt 0:00:00]} e6 {[%emt 0:00:00]} 3. Nc3 {[%emt 0:00:00]} Bb4 {[%emt 0:00:00]} 4. a3 {[%emt 0:00:00]} Bxc3+ {[%emt 0:00:08]} 5. bxc3 {[%emt 0:00:00]} c5 {[%emt 0:02:19]} 6. e3 {[%emt 0:01:24]} O-O {[%emt 0:01:39]} 7. Bd3 {[%emt 0:00:18]} Nc6 {[%emt 0:00:53]} 8. Ne2 {[%emt 0:03:34]} b6 {[%emt 0:02:03]} 9. O-O {[%emt 0:01:58]} Ba6 {[%emt 0:01:39]} 10. e4 {[%emt 0:02:55]} Ne8 {[%emt 0:01:30]} 11. f4 {[%emt 0:01:12]} f5 {[%emt 0:02:47]} 12. d5 {[%emt 0:01:37]} Na5 {[%emt 0:01:40]} 13. e5 {[%emt 0:01:09]} d6 {[%emt 0:00:24]} 14. dxe6 {[%emt 0:13:15]} Qe7 {[%emt 0:02:06]} 15. Ng3 {[%emt 0:11:30]} g6 {[%emt 0:02:47]} 16. Ra2 {[%emt 0:13:50]} Qxe6 {[%emt 0:02:56]} 17. Re2 {[%emt 0:05:24]} Rd8 {[%emt 0:02:34]} 18. Rfe1 {[%emt 0:07:00]} Ng7 {[%emt 0:03:22]} 19. Qc2 {[%emt 0:15:04]} Rf7 {[%emt 0:07:00]} 20. Nf1 {[%emt 0:05:57]} Rfd7 {[%emt 0:05:56]} 21. Re3 {[%emt 0:05:25]} Bxc4 {[%emt 0:04:15]} 22. exd6 {[%emt 0:05:29]} Bxd3 {[%emt 0:00:30]} 23. Qxd3 {[%emt 0:00:17]} Qxd6 {[%emt 0:00:23]} 24. Qb1 {[%emt 0:02:35]} c4 {[%emt 0:03:07]} 25. R3e2 {[%emt 0:01:32]} Nh5 {[%emt 0:01:12]} 26. g3 {[%emt 0:00:30]} Qc5+ {[%emt 0:01:10]} 27. Be3 {[%emt 0:00:32]} Qxa3 {[%emt 0:01:03]} 28. Bd4 {[%emt 0:00:33]} Nb3 {[%emt 0:05:46]} 29. Be5 {[%emt 0:00:50]} Qc5+ {[%emt 0:00:43]} 30. Ne3 {[%emt 0:00:31]} Nd2 {[%emt 0:01:56]} 31. Bd4 {[%emt 0:00:36]} Nf3+ {[%emt 0:00:21]} 32. Kh1 {[%emt 0:00:18]} Qc6 {[%emt 0:00:51]} 33. Ng2 {[%emt 0:00:23]} Nxe1 {[%emt 0:00:13]} 34. Qxe1 {[%emt 0:00:17]} Kf7 {[%emt 0:01:43]} 35. Kg1 {[%emt 0:00:36]} Nf6 {[%emt 0:00:07]} 36. Nh4 {[%emt 0:00:45]} a5 {[%emt 0:00:49]} 0-1

[Event "EYTCC U18 Girls 2019"]
[Site "Pardubice"]
[Date "2019.07.16"]
[Round "6.34"]
[White "Hercog, Nusa"]
[Black "Gresova, Zuzana"]
[Result "1-0"]
[ECO "D70"]
[WhiteElo "2053"]
[BlackElo "1919"]
[Annotator "NA"]
[PlyCount "131"]
[EventDate "2019.07.11"]
[EventType "swiss"]
[EventCountry "CZE"]
[SourceTitle "playchess.com"]
[Source "ChessBase"]
[SourceQuality "1"]
[WhiteTeam "Slovenia"]
[BlackTeam "Czech Republic"]
[WhiteTeamCountry "SLO"]
[BlackTeamCountry "CZE"]
[TimeControl "40/5400+30:1800+30"]

1. d4 {[%emt 0:00:00]} d5 {[%emt 0:00:00]} 2. c4 {[%emt 0:00:00]} c6 {[%emt 0:00:00]} 3. Nf3 {[%emt 0:00:00]} Nf6 {[%emt 0:00:00]} 4. Nbd2 {[%emt 0:00:00]} Bf5 {[%emt 0:06:05]} 5. e3 {[%emt 0:00:20]} e6 {[%emt 0:00:49]} 6. Be2 {[%emt 0:00:40]} Nbd7 {[%emt 0:04:11]} 7. O-O {[%emt 0:03:29]} h6 {[%emt 0:02:38]} 8. b3 {[%emt 0:02:06]} Bd6 {[%emt 0:01:45]} 9. Bb2 {[%emt 0:00:24]} Bb8 {[%emt 0:03:15]} 10. Re1 {[%emt 0:07:11]} O-O {[%emt 0:02:37]} 11. g3 {[%emt 0:07:10]} Re8 {[%emt 0:02:44]} 12. Nh4 {[%emt 0:03:16]} Bh7 {[%emt 0:02:47]} 13. f4 {[%emt 0:07:47]} Ne4 {[%emt 0:07:09]} 14. Nhf3 {[%emt 0:01:52]} f5 {[%emt 0:07:13]} 15. Nxe4 {[%emt 0:06:07]} fxe4 {[%emt 0:01:45]} 16. Ne5 {[%emt 0:05:47]} Bd6 {[%emt 0:12:52]} 17. c5 {[%emt 0:07:18]} Nxe5 {[%emt 0:03:41]} 18. fxe5 {[%emt 0:00:06]} Bc7 {[%emt 0:01:21]} 19. Bg4 {[%emt 0:05:30]} Qe7 {[%emt 0:02:26]} 20. Qe2 {[%emt 0:03:33]} Rf8 {[%emt 0:02:16]} 21. Rf1 {[%emt 0:01:30]} g5 {[%emt 0:04:38]} 22. Qg2 {[%emt 0:14:37]} Kg7 {[%emt 0:01:46]} 23. Qh3 {[%emt 0:01:30]} Bg8 {[%emt 0:03:01]} 24. b4 {[%emt 0:00:28]} a6 {[%emt 0:02:04]} 25. a4 {[%emt 0:01:48]} Rae8 {[%emt 0:01:17]} 26. Be2 {[%emt 0:03:23]} Bh7 {[%emt 0:04:16]} 27. Bc3 {[%emt 0:02:03]} Bf5 {[%emt 0:01:33]} 28. g4 {[%emt 0:00:13]} Bg6 {[%emt 0:00:44]} 29. Rxf8 {[%emt 0:00:44]} Qxf8 {[%emt 0:01:01]} 30. b5 {[%emt 0:03:08]} axb5 {[%emt 0:03:37]} 31. axb5 {[%emt 0:00:09]} cxb5 {[%emt 0:01:43]} 32. Bxb5 {[%emt 0:00:52]} Ra8 {[%emt 0:00:55]} 33. Rxa8 {[%emt 0:01:27]} Qxa8 {[%emt 0:00:08]} 34. Qf1 {[%emt 0:00:14]} Bd8 {[%emt 0:03:00]} 35. Qa1 {[%emt 0:06:24]} Qxa1+ {[%emt 0:08:46]} 36. Bxa1 {[%emt 0:00:02]} Kf8 {[%emt 0:01:21]} 37. Bc3 {[%emt 0:00:57]} Be8 {[%emt 0:00:38]} 38. Be2 {[%emt 0:01:31]} Bc6 {[%emt 0:00:19]} 39. Kf2 {[%emt 0:00:37]} Ke7 {[%emt 0:00:37]} 40. Ke1 {[%emt 0:01:19]} Kd7 {[%emt 0:00:41]} 41. Bb4 {[%emt 0:30:56]} b6 {[%emt 0:10:35]} 42. cxb6 {[%emt 0:00:00]} Bxb6 {[%emt 0:00:29]} 43. Bf8 {[%emt 0:00:00]} Ke8 {[%emt 0:00:45]} 44. Bxh6 {[%emt 0:00:00]} Bd8 {[%emt 0:00:35]} 45. h4 {[%emt 0:00:00]} gxh4 {[%emt 0:00:42]} 46. g5 {[%emt 0:00:00]} Kf7 {[%emt 0:04:23]} 47. Bh5+ {[%emt 0:00:00]} Kg8 {[%emt 0:01:02]} 48. Kf2 {[%emt 0:00:54]} Be7 {[%emt 0:02:16]} 49. Kg2 {[%emt 0:00:33]} Bf8 {[%emt 0:02:30]} 50. Bxf8 {[%emt 0:00:14]} Kxf8 {[%emt 0:00:15]} 51. Kh3 {[%emt 0:00:02]} Kg7 {[%emt 0:02:52]} 52. Kxh4 {[%emt 0:00:05]} Bb5 {[%emt 0:01:11]} 53. Kg3 {[%emt 0:05:03]} Bd7 {[%emt 0:01:10]} 54. Kf2 {[%emt 0:00:21]} Kf8 {[%emt 0:07:22]} 55. Ke2 {[%emt 0:00:26]} Ke7 {[%emt 0:01:36]} 56. Kd2 {[%emt 0:00:10]} Bb5 {[%emt 0:01:14]} 57. Kc3 {[%emt 0:00:14]} Bf1 {[%emt 0:00:32]} 58. g6 {[%emt 0:01:05]} Kf8 {[%emt 0:00:37]} 59. Bg4 {[%emt 0:00:20]} Kg7 {[%emt 0:00:56]} 60. Bxe6 {[%emt 0:00:06]} Kxg6 {[%emt 0:00:38]} 61. Bxd5 {[%emt 0:00:03]} Kf5 {[%emt 0:00:26]} 62. Bc4 {[%emt 0:01:32]} Bh3 {[%emt 0:00:30]} 63. e6 {[%emt 0:00:47]} Kf6 {[%emt 0:00:23]} 64. Kb4 {[%emt 0:00:16]} Ke7 {[%emt 0:00:37]} 65. Kc5 {[%emt 0:00:05]} Bg4 {[%emt 0:00:37]} 66. d5 {[%emt 0:00:32]} 1-0

[Event "EYTCC U18 Girls 2019"]
[Site "Pardubice"]
[Date "2019.07.16"]
[Round "6.35"]
[White "Pribylova, Sofie"]
[Black "Sahin, Hayrun Nisa"]
[Result "1-0"]
[ECO "A48"]
[WhiteElo "2093"]
[BlackElo "1772"]
[Annotator "NA"]
[PlyCount "97"]
[EventDate "2019.07.11"]
[EventType "swiss"]
[EventCountry "CZE"]
[SourceTitle "playchess.com"]
[Source "ChessBase"]
[SourceQuality "1"]
[WhiteTeam "Czech Republic"]
[BlackTeam "Turkey"]
[WhiteTeamCountry "CZE"]
[BlackTeamCountry "TUR"]
[TimeControl "40/5400+30:1800+30"]

1. d4 {[%emt 0:00:00]} Nf6 {[%emt 0:00:00]} 2. Nf3 {[%emt 0:00:00]} g6 {[%emt 0:00:00]} 3. Bg5 {[%emt 0:00:00]} Bg7 {[%emt 0:14:54]} 4. Nbd2 {[%emt 0:00:47]} O-O {[%emt 0:04:17]} 5. c3 {[%emt 0:00:36]} d6 {[%emt 0:02:22]} 6. e4 {[%emt 0:00:27]} c5 {[%emt 0:05:14]} 7. dxc5 {[%emt 0:01:16]} dxc5 {[%emt 0:00:07]} 8. Bc4 {[%emt 0:00:11]} h6 {[%emt 0:05:19]} 9. Bh4 {[%emt 0:01:12]} Nh5 {[%emt 0:02:16]} 10. O-O {[%emt 0:01:23]} Nd7 {[%emt 0:07:20]} 11. Qe2 {[%emt 0:04:56]} Nb6 {[%emt 0:04:37]} 12. Bb3 {[%emt 0:02:52]} Qc7 {[%emt 0:03:16]} 13. Qe3 {[%emt 0:02:50]} c4 {[%emt 0:10:17]} 14. Bc2 {[%emt 0:02:05]} e5 {[%emt 0:00:18]} 15. Rfd1 {[%emt 0:04:02]} Be6 {[%emt 0:03:49]} 16. Nf1 {[%emt 0:04:25]} f6 {[%emt 0:02:05]} 17. Ng3 {[%emt 0:06:21]} Nf4 {[%emt 0:03:30]} 18. Ne2 {[%emt 0:02:33]} h5 {[%emt 0:02:08]} 19. Bg3 {[%emt 0:05:32]} Bh6 {[%emt 0:07:26]} 20. Bxf4 {[%emt 0:05:04]} exf4 {[%emt 0:00:07]} 21. Qd2 {[%emt 0:01:12]} Rfd8 {[%emt 0:04:52]} 22. Ned4 {[%emt 0:02:05]} Bf7 {[%emt 0:02:03]} 23. Qe2 {[%emt 0:05:45]} a6 {[%emt 0:00:47]} 24. e5 {[%emt 0:07:13]} fxe5 {[%emt 0:00:27]} 25. Qxe5 {[%emt 0:00:38]} Qxe5 {[%emt 0:02:12]} 26. Nxe5 {[%emt 0:01:10]} Kg7 {[%emt 0:03:05]} 27. Nxg6 {[%emt 0:19:14]} Kf6 {[%emt 0:06:13]} 28. Nh4 {[%emt 0:01:22]} Rg8 {[%emt 0:00:32]} 29. Ndf5 {[%emt 0:07:30]} Bf8 {[%emt 0:00:47]} 30. Nd6 {[%emt 0:05:02]} Bd5 {[%emt 0:00:12]} 31. Ne4+ {[%emt 0:00:35]} Bxe4 {[%emt 0:01:06]} 32. Bxe4 {[%emt 0:00:07]} Rb8 {[%emt 0:00:33]} 33. g3 {[%emt 0:03:26]} Bc5 {[%emt 0:01:46]} 34. Kf1 {[%emt 0:01:40]} fxg3 {[%emt 0:00:19]} 35. hxg3 {[%emt 0:00:30]} Ke5 {[%emt 0:00:10]} 36. Bf3 {[%emt 0:00:21]} Rbf8 {[%emt 0:00:31]} 37. Kg2 {[%emt 0:00:43]} Rf4 {[%emt 0:00:26]} 38. Re1+ {[%emt 0:01:02]} Kd6 {[%emt 0:00:33]} 39. Rad1+ {[%emt 0:00:38]} Kc7 {[%emt 0:00:07]} 40. Re4 {[%emt 0:00:26]} Rf7 {[%emt 0:03:09]} 41. Re5 {[%emt 0:31:21]} Bd6 {[%emt 0:07:56]} 42. Rxh5 {[%emt 0:00:00]} Rgf8 {[%emt 0:02:30]} 43. Rd2 {[%emt 0:00:00]} Nd7 {[%emt 0:04:33]} 44. Bd5 {[%emt 0:00:00]} Rf6 {[%emt 0:01:17]} 45. Bxc4 {[%emt 0:00:00]} Nc5 {[%emt 0:00:36]} 46. f3 {[%emt 0:00:00]} Nd7 {[%emt 0:02:16]} 47. Rh7 {[%emt 0:00:00]} Kc8 {[%emt 0:00:51]} 48. Bd5 {[%emt 0:00:00]} a5 {[%emt 0:01:23]} 49. Bxb7+ {[%emt 0:00:00]} 1-0

[Event "EYTCC U18 Girls 2019"]
[Site "Pardubice"]
[Date "2019.07.16"]
[Round "6.36"]
[White "Aydin, Gulenay"]
[Black "Nemcova, Karin"]
[Result "1-0"]
[ECO "B40"]
[WhiteElo "1934"]
[BlackElo "1956"]
[Annotator "NA"]
[PlyCount "67"]
[EventDate "2019.07.11"]
[EventType "swiss"]
[EventCountry "CZE"]
[SourceTitle "playchess.com"]
[Source "ChessBase"]
[SourceQuality "1"]
[WhiteTeam "Turkey"]
[BlackTeam "Czech Republic"]
[WhiteTeamCountry "TUR"]
[BlackTeamCountry "CZE"]
[TimeControl "40/5400+30:1800+30"]

1. e4 {[%emt 0:00:00]} c5 {[%emt 0:00:00]} 2. Nf3 {[%emt 0:00:00]} e6 {[%emt 0:00:00]} 3. c3 {[%emt 0:00:00]} Nf6 {[%emt 0:00:04]} 4. e5 {[%emt 0:00:00]} Nd5 {[%emt 0:00:10]} 5. d4 {[%emt 0:00:00]} cxd4 {[%emt 0:00:12]} 6. cxd4 {[%emt 0:00:01]} d6 {[%emt 0:00:31]} 7. a3 {[%emt 0:00:11]} Nc6 {[%emt 0:00:19]} 8. Bd3 {[%emt 0:05:11]} g6 {[%emt 0:00:25]} 9. O-O {[%emt 0:00:38]} Bg7 {[%emt 0:03:15]} 10. Re1 {[%emt 0:05:37]} O-O {[%emt 0:00:13]} 11. Qe2 {[%emt 0:06:27]} b6 {[%emt 0:05:29]} 12. Qe4 {[%emt 0:07:26]} Bb7 {[%emt 0:03:21]} 13. Bg5 {[%emt 0:03:02]} Qc7 {[%emt 0:05:48]} 14. Nbd2 {[%emt 0:04:18]} dxe5 {[%emt 0:12:42]} 15. dxe5 {[%emt 0:01:43]} Nce7 {[%emt 0:04:21]} 16. Qh4 {[%emt 0:06:34]} Nf5 {[%emt 0:17:26]} 17. Bxf5 {[%emt 0:21:26]} exf5 {[%emt 0:00:34]} 18. Bh6 {[%emt 0:00:26]} f6 {[%emt 0:07:55]} 19. Rac1 {[%emt 0:08:17]} Qd8 {[%emt 0:05:05]} 20. Bxg7 {[%emt 0:10:39]} Kxg7 {[%emt 0:00:42]} 21. exf6+ {[%emt 0:00:20]} Nxf6 {[%emt 0:03:06]} 22. Nd4 {[%emt 0:04:34]} Bd5 {[%emt 0:01:47]} 23. Qg3 {[%emt 0:02:08]} Kh8 {[%emt 0:05:24]} 24. Rc7 {[%emt 0:01:56]} Rf7 {[%emt 0:02:56]} 25. Rec1 {[%emt 0:02:13]} Qe8 {[%emt 0:13:57]} 26. Rxf7 {[%emt 0:03:42]} Bxf7 {[%emt 0:01:00]} 27. N2f3 {[%emt 0:00:42]} Rc8 {[%emt 0:01:21]} 28. Rxc8 {[%emt 0:01:28]} Qxc8 {[%emt 0:00:13]} 29. h3 {[%emt 0:00:30]} Qc1+ {[%emt 0:01:51]} 30. Kh2 {[%emt 0:00:05]} Qxb2 {[%emt 0:02:43]} 31. Qe5 {[%emt 0:01:15]} Kg8 {[%emt 0:01:18]} 32. Qxf6 {[%emt 0:00:27]} Qxa3 {[%emt 0:00:25]} 33. Ng5 {[%emt 0:00:53]} Qa2 {[%emt 0:00:37]} 34. Nde6 {[%emt 0:00:30]} 1-0

[Event "EYTCC U18 Girls 2019"]
[Site "Pardubice"]
[Date "2019.07.16"]
[Round "6.37"]
[White "Laurincova, Kristyna"]
[Black "Tarasenka, Aliaksandra"]
[Result "1-0"]
[ECO "B40"]
[WhiteElo "2010"]
[BlackElo "2231"]
[Annotator "NA"]
[PlyCount "89"]
[EventDate "2019.07.11"]
[EventType "swiss"]
[EventCountry "CZE"]
[SourceTitle "playchess.com"]
[Source "ChessBase"]
[SourceQuality "1"]
[WhiteTeam "Czech Republic"]
[BlackTeam "Belarus"]
[WhiteTeamCountry "CZE"]
[BlackTeamCountry "BLR"]
[TimeControl "40/5400+30:1800+30"]

1. e4 {[%emt 0:00:00]} c5 {[%emt 0:00:00]} 2. Nf3 {[%emt 0:00:00]} e6 {[%emt 0:00:00]} 3. d4 {[%emt 0:00:00]} cxd4 {[%emt 0:00:00]} 4. Nxd4 {[%emt 0:00:00]} Nf6 {[%emt 0:00:00]} 5. Nc3 {[%emt 0:00:07]} Nc6 {[%emt 0:00:02]} 6. Ndb5 {[%emt 0:00:12]} Bb4 {[%emt 0:00:08]} 7. a3 {[%emt 0:00:07]} Bxc3+ {[%emt 0:00:09]} 8. Nxc3 {[%emt 0:00:06]} d5 {[%emt 0:00:07]} 9. exd5 {[%emt 0:00:07]} exd5 {[%emt 0:00:07]} 10. Bd3 {[%emt 0:00:08]} O-O {[%emt 0:00:47]} 11. O-O {[%emt 0:00:06]} d4 {[%emt 0:00:59]} 12. Ne2 {[%emt 0:00:07]} Ng4 {[%emt 0:00:57]} 13. Bf4 {[%emt 0:00:41]} Re8 {[%emt 0:03:54]} 14. Qd2 {[%emt 0:00:43]} Qf6 {[%emt 0:04:47]} 15. Rad1 {[%emt 0:01:21]} Nge5 {[%emt 0:04:07]} 16. Bb5 {[%emt 0:10:04]} d3 {[%emt 0:48:21]} 17. cxd3 {[%emt 0:20:23]} Ng6 {[%emt 0:04:50]} 18. Be3 {[%emt 0:09:52]} Bg4 {[%emt 0:03:47]} 19. d4 {[%emt 0:03:58]} Rad8 {[%emt 0:03:08]} 20. Bg5 {[%emt 0:10:35]} Qf5 {[%emt 0:05:53]} 21. Bd3 {[%emt 0:03:26]} Qd5 {[%emt 0:02:03]} 22. Bxd8 {[%emt 0:01:45]} Rxd8 {[%emt 0:03:01]} 23. f3 {[%emt 0:00:44]} Bf5 {[%emt 0:04:00]} 24. Bxf5 {[%emt 0:00:13]} Qxf5 {[%emt 0:00:05]} 25. Rfe1 {[%emt 0:02:27]} Qf6 {[%emt 0:03:25]} 26. Qe3 {[%emt 0:03:22]} h5 {[%emt 0:01:59]} 27. d5 {[%emt 0:02:36]} Nce5 {[%emt 0:00:46]} 28. Ng3 {[%emt 0:01:40]} h4 {[%emt 0:02:28]} 29. Ne4 {[%emt 0:00:01]} Qa6 {[%emt 0:01:43]} 30. h3 {[%emt 0:10:33]} Nc4 {[%emt 0:02:22]} 31. Qb3 {[%emt 0:01:04]} Nf4 {[%emt 0:00:41]} 32. d6 {[%emt 0:03:31]} Nxd6 {[%emt 0:00:48]} 33. Nxd6 {[%emt 0:00:02]} Rxd6 {[%emt 0:00:10]} 34. Rxd6 {[%emt 0:08:18]} Qxd6 {[%emt 0:00:05]} 35. Re8+ {[%emt 0:03:47]} Kh7 {[%emt 0:00:08]} 36. Qxf7 {[%emt 0:03:57]} Qd1+ {[%emt 0:01:38]} 37. Kh2 {[%emt 0:00:23]} Qd6 {[%emt 0:00:33]} 38. Qe7 {[%emt 0:00:41]} Qh6 {[%emt 0:00:30]} 39. Qe4+ {[%emt 0:00:57]} Ng6 {[%emt 0:00:25]} 40. Qc4 {[%emt 0:00:43]} Qg5 {[%emt 0:00:33]} 41. Qg4 {[%emt 0:03:31]} Qc5 {[%emt 0:04:17]} 42. Re4 {[%emt 0:04:59]} Qd5 {[%emt 0:07:49]} 43. Re6 {[%emt 0:00:32]} Nf4 {[%emt 0:02:55]} 44. Qxh4+ {[%emt 0:01:18]} Nh5 {[%emt 0:00:23]} 45. Qe4+ {[%emt 0:00:43]} 1-0

[Event "EYTCC U18 Girls 2019"]
[Site "Pardubice"]
[Date "2019.07.16"]
[Round "6.38"]
[White "Kuzich, Aryna"]
[Black "Lhotska, Anna"]
[Result "1-0"]
[ECO "B54"]
[WhiteElo "1902"]
[BlackElo "1922"]
[Annotator "NA"]
[PlyCount "117"]
[EventDate "2019.07.11"]
[EventType "swiss"]
[EventCountry "CZE"]
[SourceTitle "playchess.com"]
[Source "ChessBase"]
[SourceQuality "1"]
[WhiteTeam "Belarus"]
[BlackTeam "Czech Republic"]
[WhiteTeamCountry "BLR"]
[BlackTeamCountry "CZE"]
[TimeControl "40/5400+30:1800+30"]

1. e4 {[%emt 0:00:00]} c5 {[%emt 0:00:00]} 2. Nf3 {[%emt 0:00:00]} d6 {[%emt 0:00:00]} 3. d4 {[%emt 0:00:00]} cxd4 {[%emt 0:00:00]} 4. Nxd4 {[%emt 0:00:00]} Nf6 {[%emt 0:00:00]} 5. f3 {[%emt 0:00:03]} Nc6 {[%emt 0:00:21]} 6. c4 {[%emt 0:00:25]} e6 {[%emt 0:04:28]} 7. Nc3 {[%emt 0:03:28]} Be7 {[%emt 0:03:01]} 8. Be3 {[%emt 0:02:38]} O-O {[%emt 0:03:59]} 9. Be2 {[%emt 0:06:09]} a6 {[%emt 0:15:36]} 10. O-O {[%emt 0:14:54]} Qc7 {[%emt 0:06:16]} 11. Qd2 {[%emt 0:25:48]} Ne5 {[%emt 0:07:21]} 12. b3 {[%emt 0:04:23]} b6 {[%emt 0:03:16]} 13. Kh1 {[%emt 0:14:51]} Bb7 {[%emt 0:02:57]} 14. Qc2 {[%emt 0:00:33]} Rac8 {[%emt 0:06:34]} 15. f4 {[%emt 0:01:27]} Nc6 {[%emt 0:09:46]} 16. Bf3 {[%emt 0:01:07]} Nd7 {[%emt 0:04:19]} 17. Rad1 {[%emt 0:04:05]} Bf6 {[%emt 0:05:43]} 18. Nce2 {[%emt 0:02:10]} Ne7 {[%emt 0:05:26]} 19. Qb1 {[%emt 0:02:24]} Nc5 {[%emt 0:02:06]} 20. Ng3 {[%emt 0:02:32]} g6 {[%emt 0:05:40]} 21. Rd2 {[%emt 0:02:03]} Bg7 {[%emt 0:01:31]} 22. Rfd1 {[%emt 0:05:47]} Rfd8 {[%emt 0:02:24]} 23. Nde2 {[%emt 0:04:49]} a5 {[%emt 0:07:50]} 24. Qc2 {[%emt 0:01:10]} Nc6 {[%emt 0:01:02]} 25. Nd4 {[%emt 0:00:47]} Nxd4 {[%emt 0:00:27]} 26. Bxd4 {[%emt 0:00:06]} Bxd4 {[%emt 0:00:30]} 27. Rxd4 {[%emt 0:00:02]} e5 {[%emt 0:00:40]} 28. fxe5 {[%emt 0:00:37]} dxe5 {[%emt 0:00:06]} 29. R4d2 {[%emt 0:01:01]} Ne6 {[%emt 0:00:36]} 30. Ne2 {[%emt 0:00:17]} Ba6 {[%emt 0:00:39]} 31. Bg4 {[%emt 0:00:30]} Rxd2 {[%emt 0:01:32]} 32. Qxd2 {[%emt 0:01:00]} Rd8 {[%emt 0:00:17]} 33. Qe1 {[%emt 0:00:21]} Nc5 {[%emt 0:00:25]} 34. Nc3 {[%emt 0:00:46]} Bb7 {[%emt 0:00:39]} 35. Nd5 {[%emt 0:00:20]} Bxd5 {[%emt 0:00:09]} 36. cxd5 {[%emt 0:00:25]} Qe7 {[%emt 0:00:54]} 37. Qe2 {[%emt 0:00:39]} Rd6 {[%emt 0:01:01]} 38. Re1 {[%emt 0:00:41]} Qg5 {[%emt 0:00:18]} 39. Bf3 {[%emt 0:00:11]} Qf6 {[%emt 0:00:35]} 40. Qb5 {[%emt 0:00:25]} Qf4 {[%emt 0:00:48]} 41. Qe2 {[%emt 0:30:29]} Rd8 {[%emt 0:15:05]} 42. g3 {[%emt 0:00:00]} Qf6 {[%emt 0:00:59]} 43. Kg2 {[%emt 0:00:00]} Qe7 {[%emt 0:00:57]} 44. Qc2 {[%emt 0:00:00]} Rd7 {[%emt 0:02:44]} 45. Rd1 {[%emt 0:00:00]} Qd6 {[%emt 0:00:26]} 46. Be2 {[%emt 0:00:00]} Rc7 {[%emt 0:00:46]} 47. Bc4 {[%emt 0:00:00]} Nb7 {[%emt 0:01:07]} 48. Qd2 {[%emt 0:00:00]} Qd8 {[%emt 0:03:08]} 49. d6 {[%emt 0:00:00]} Rd7 {[%emt 0:00:48]} 50. Qd5 {[%emt 0:00:00]} Qf8 {[%emt 0:04:50]} 51. Qxe5 {[%emt 0:00:17]} Rxd6 {[%emt 0:00:49]} 52. Bd5 {[%emt 0:00:42]} Rd7 {[%emt 0:01:38]} 53. Rf1 {[%emt 0:00:44]} Nc5 {[%emt 0:00:38]} 54. Qf6 {[%emt 0:01:35]} b5 {[%emt 0:01:50]} 55. Qc6 {[%emt 0:01:30]} Rb7 {[%emt 0:00:56]} 56. e5 {[%emt 0:00:50]} Ra7 {[%emt 0:01:08]} 57. e6 {[%emt 0:00:52]} Nd3 {[%emt 0:00:37]} 58. exf7+ {[%emt 0:00:22]} Kh8 {[%emt 0:00:32]} 59. Qf6+ {[%emt 0:00:32]} 1-0

[Event "EYTCC U18 Girls 2019"]
[Site "Pardubice"]
[Date "2019.07.16"]
[Round "6.39"]
[White "Stroganova, Karina"]
[Black "Cvitan, Ena"]
[Result "0-1"]
[ECO "D00"]
[WhiteElo "1875"]
[BlackElo "2202"]
[Annotator "NA"]
[PlyCount "80"]
[EventDate "2019.07.11"]
[EventType "swiss"]
[EventCountry "CZE"]
[SourceTitle "playchess.com"]
[Source "ChessBase"]
[SourceQuality "1"]
[WhiteTeam "Russia"]
[BlackTeam "Croatia"]
[WhiteTeamCountry "RUS"]
[BlackTeamCountry "CRO"]
[TimeControl "40/5400+30:1800+30"]

1. d4 {[%emt 0:00:00]} d5 {[%emt 0:00:00]} 2. Bf4 {[%emt 0:00:00]} e6 {[%emt 0:00:12]} 3. Nf3 {[%emt 0:00:20]} Bd6 {[%emt 0:00:14]} 4. Bg3 {[%emt 0:00:46]} Nf6 {[%emt 0:00:38]} 5. e3 {[%emt 0:01:09]} c5 {[%emt 0:00:36]} 6. Nbd2 {[%emt 0:01:11]} Qc7 {[%emt 0:04:14]} 7. c3 {[%emt 0:14:09]} Nbd7 {[%emt 0:00:31]} 8. Bd3 {[%emt 0:08:43]} O-O {[%emt 0:02:57]} 9. O-O {[%emt 0:18:54]} Bxg3 {[%emt 0:00:42]} 10. fxg3 {[%emt 0:00:17]} e5 {[%emt 0:09:21]} 11. e4 {[%emt 0:07:33]} dxe4 {[%emt 0:08:34]} 12. Nxe4 {[%emt 0:00:42]} Nxe4 {[%emt 0:07:59]} 13. Bxe4 {[%emt 0:00:11]} Nf6 {[%emt 0:01:50]} 14. Bc2 {[%emt 0:01:13]} cxd4 {[%emt 0:03:23]} 15. cxd4 {[%emt 0:01:41]} exd4 {[%emt 0:01:59]} 16. Rc1 {[%emt 0:01:01]} Qb6 {[%emt 0:04:01]} 17. Qxd4 {[%emt 0:01:36]} Be6 {[%emt 0:06:06]} 18. Qxb6 {[%emt 0:04:53]} axb6 {[%emt 0:00:08]} 19. a3 {[%emt 0:00:17]} Rfd8 {[%emt 0:02:46]} 20. Ng5 {[%emt 0:13:54]} Bd5 {[%emt 0:02:03]} 21. Bf5 {[%emt 0:00:30]} h6 {[%emt 0:01:55]} 22. Nh3 {[%emt 0:01:05]} Bc6 {[%emt 0:01:55]} 23. Nf4 {[%emt 0:02:28]} Rd2 {[%emt 0:01:40]} 24. Rc2 {[%emt 0:03:53]} Rad8 {[%emt 0:01:10]} 25. Rf2 {[%emt 0:00:43]} Rd1+ {[%emt 0:01:10]} 26. Rf1 {[%emt 0:00:05]} Rxf1+ {[%emt 0:01:00]} 27. Kxf1 {[%emt 0:00:04]} g6 {[%emt 0:00:56]} 28. Nxg6 {[%emt 0:08:35]} fxg6 {[%emt 0:00:21]} 29. Bxg6 {[%emt 0:00:06]} Ng4 {[%emt 0:01:35]} 30. Ke2 {[%emt 0:01:09]} Bb5+ {[%emt 0:08:02]} 31. Ke1 {[%emt 0:00:40]} Ne3 {[%emt 0:02:12]} 32. Rc7 {[%emt 0:00:37]} Rd1+ {[%emt 0:01:03]} 33. Kf2 {[%emt 0:00:05]} Ng4+ {[%emt 0:00:07]} 34. Kf3 {[%emt 0:00:11]} Ne5+ {[%emt 0:00:15]} 35. Kf4 {[%emt 0:00:45]} Nxg6+ {[%emt 0:00:30]} 36. Kf5 {[%emt 0:00:06]} Bd3+ {[%emt 0:03:31]} 37. Kf6 {[%emt 0:00:19]} Rf1+ {[%emt 0:01:02]} 38. Ke6 {[%emt 0:00:11]} Bf5+ {[%emt 0:00:57]} 39. Kf6 {[%emt 0:00:22]} Bc2+ {[%emt 0:05:26]} 40. Ke6 {[%emt 0:00:12]} Bb3+ {[%emt 0:00:15]} 0-1